fUSD/lending_fUSD_20241209
["ID","MTS","AMOUNT","RATE_DAILY","PERIOD"]
[344745721,1733763133127,-150.0,0.00026811,4]
[344745722,1733763133137,-1500.0,0.00026825,2]
[344745723,1733763133147,-170.34598617,0.0002684,4]
[344745724,1733763133157,-236.39968009,0.0002684,4]
[344745725,1733763133167,-150.0,0.00026864,4]
[344745726,1733763133176,-3801.27,0.00026868,7]
[344745727,1733763133186,-3801.27,0.00026868,7]
[344745728,1733763133196,-170.34598617,0.00026869,4]
[344745729,1733763133205,-236.39968009,0.00026869,4]
[344745730,1733763133217,-1500.0,0.0002688,2]
[344745731,1733763133227,-1500.0,0.00026882,2]
[344745732,1733763133237,-1500.0,0.00026884,2]
[344745733,1733763133247,-170.34598617,0.00026898,4]
[344745734,1733763133256,-236.39968009,0.00026898,4]
[344745735,1733763133266,-1500.0,0.000269,2]
[344745736,1733763133275,-150.0,0.00026907,4]
[344745737,1733763133286,-150.0,0.00026917,4]
[344745738,1733763133295,-170.34598617,0.00026927,4]
[344745739,1733763133305,-236.39968009,0.00026927,4]
[344745740,1733763133315,-150.0,0.00026931,4]
[344745741,1733763133325,-150.0,0.00026931,4]
[344745742,1733763133335,-170.34598617,0.00026956,4]
[344745743,1733763133345,-236.39968009,0.00026956,4]
[344745744,1733763133355,-150.0,0.00026971,4]
[344745745,1733763133364,-152.0,0.00026982,15]
[344745746,1733763133374,-170.34598617,0.00026985,4]
[344745747,1733763133384,-236.39968009,0.00026985,4]
[344745748,1733763133393,-150.0,0.00026987,2]
[344745749,1733763133403,-300.0,0.00026987,2]
[344745750,1733763133412,-150.0,0.00026987,2]
[344745751,1733763133422,-1108.69,0.00026994,30]
[344745752,1733763133432,-50000.0,0.00027,5]
[344745753,1733763133442,-3600.0,0.00027,28]
[344745754,1733763133450,-250.0,0.00027,2]
[344745755,1733763133460,-381.03652379,0.00027,2]
[344745756,1733763133474,-987.98770187,0.00027,2]
[344745757,1733763133485,-15000.0,0.00027,7]
[344745758,1733763133494,-678.32143006,0.00027,120]
[344745759,1733763133504,-2000.0,0.00027,120]
[344745760,1733763133513,-695.62259812,0.00027,120]
[344745761,1733763133523,-240.0,0.00027,2]
[344745762,1733763133532,-204.0,0.00027,2]
[344745763,1733763133543,-207.0,0.00027,2]
[344745764,1733763133552,-800.0,0.00027,2]
[344745765,1733763133562,-150.0,0.00027002,4]
[344745766,1733763133571,-170.34598617,0.00027014,4]
[344745767,1733763133581,-236.39968009,0.00027014,4]
[344745768,1733763133595,-150.0,0.00027024,4]
[344745769,1733763133605,-232.17,0.00027028,2]
[344745770,1733763133614,-2000.0,0.00027032,120]
[344745771,1733763133626,-170.34598617,0.00027043,4]
[344745772,1733763133636,-236.39968009,0.00027043,4]
[344745773,1733763133646,-170.34598617,0.00027072,4]
[344745774,1733763133657,-236.39968009,0.00027072,4]
[344745775,1733763133668,-150.0,0.00027077,4]
[344745776,1733763133678,-150.0,0.00027098,4]
[344745777,1733763133689,-170.34598617,0.00027101,4]
[344745778,1733763133699,-236.39968009,0.00027101,4]
[344745779,1733763133710,-150.0,0.0002711,4]
[344745780,1733763133724,-1500.0,0.00027115,2]
[344745781,1733763133735,-3505.4,0.00027123,2]
[344745782,1733763133745,-170.34598617,0.0002713,4]
[344745783,1733763133755,-236.39968009,0.0002713,4]
[344745784,1733763133765,-150.0,0.0002713,4]
[344745785,1733763133775,-3801.27,0.00027141,7]
[344745786,1733763133784,-3801.27,0.00027141,7]
[344745787,1733763133794,-150.0,0.00027157,120]
[344745788,1733763133804,-170.34598617,0.00027159,4]
[344745789,1733763133814,-236.39968009,0.00027159,4]
[344745790,1733763133824,-247.68174681,0.00027172,2]
[344745791,1733763133834,-1500.0,0.00027173,2]
[344745792,1733763133843,-150.0,0.00027183,4]
[344745793,1733763133853,-1500.0,0.00027184,2]
[344745794,1733763133863,-170.34598617,0.00027188,4]
[344745795,1733763133873,-236.39968009,0.00027188,4]
[344745796,1733763133882,-150.0,0.00027194,4]
[344745797,1733763133893,-170.34598617,0.00027217,4]
[344745798,1733763133902,-236.39968009,0.00027217,4]
[344745799,1733763133910,-201.0,0.0002722,2]
[344745800,1733763133919,-500.24,0.00027222,2]
[344745801,1733763133929,-500.0,0.00027222,2]
[344745802,1733763133939,-500.0,0.00027222,2]
[344745803,1733763133949,-500.0,0.00027222,2]
[344745804,1733763133959,-500.0,0.00027222,2]
[344745805,1733763133975,-2110.0,0.00027226,2]
[344745806,1733763133985,-502.392098,0.00027228,120]
[344745807,1733763133994,-28323.31353551,0.00027233,2]
[344745808,1733763134003,-150.0,0.00027237,4]
[344745809,1733763134013,-170.34598617,0.00027246,4]
[344745810,1733763134022,-236.39968009,0.00027246,4]
[344745811,1733763134031,-150.0,0.00027261,120]
[344745812,1733763134040,-170.34598617,0.00027275,4]
[344745813,1733763134050,-236.39968009,0.00027275,4]
[344745814,1733763134059,-616.78,0.00027275,2]
[344745815,1733763134068,-1500.0,0.00027279,2]
[344745816,1733763134078,-2583.00639525,0.0002728,7]
[344745817,1733763134087,-150.0,0.0002729,4]
[344745818,1733763134096,-150.0,0.0002729,4]
[344745819,1733763134105,-150.0,0.0002729,4]
[344745820,1733763134115,-150.0,0.0002729,4]
[344745821,1733763134124,-150.0,0.0002729,4]
[344745822,1733763134133,-150.0,0.0002729,4]
[344745823,1733763134141,-150.0,0.0002729,4]
[344745824,1733763134150,-556.5801336,0.000273,2]
[344745825,1733763134159,-947.0,0.000273,15]
[344745826,1733763134169,-500.594436,0.000273,2]
[344745827,1733763134178,-170.34598617,0.00027304,4]
[344745828,1733763134188,-236.39968009,0.00027304,4]
[344745829,1733763134198,-500.0,0.00027306,120]
[344745830,1733763134207,-150.0,0.00027306,120]
[344745831,1733763134219,-1500.0,0.0002731,2]
[344745832,1733763134229,-150.0,0.00027331,120]
[344745833,1733763134239,-500.0,0.00027333,120]
[344745834,1733763134248,-170.34598617,0.00027333,4]
[344745835,1733763134257,-236.39968009,0.00027333,4]
[344745836,1733763134267,-1500.0,0.00027342,2]
[344745837,1733763134276,-150.0,0.00027343,4]
[344745838,1733763134286,-1500.0,0.00027348,2]
[344745839,1733763134295,-170.34598617,0.00027362,4]
[344745840,1733763134304,-236.39968009,0.00027362,4]
[344745841,1733763134313,-150.0,0.00027383,120]
[344745842,1733763134323,-150.0,0.00027385,4]
[344745843,1733763134331,-170.34598617,0.00027391,4]
[344745844,1733763134340,-236.39968009,0.00027391,4]
[344745845,1733763134350,-150.0,0.00027396,4]
[344745846,1733763134359,-531.82,0.00027397,2]
[344745847,1733763134368,-531.82,0.00027397,2]
[344745848,1733763134377,-531.82,0.00027397,2]
[344745849,1733763134386,-531.82,0.00027397,2]
[344745850,1733763134395,-531.82,0.00027397,2]
[344745851,1733763134404,-531.82,0.00027397,2]
[344745852,1733763134414,-531.82,0.00027397,2]
[344745853,1733763134423,-531.82,0.00027397,2]
[344745854,1733763134432,-531.82,0.00027397,2]
[344745855,1733763134513,-531.82,0.00027397,2]
[344745856,1733763134522,-531.82,0.00027397,2]
[344745857,1733763134531,-531.82,0.00027397,2]
[344745858,1733763134540,-531.82,0.00027397,2]
[344745859,1733763134549,-531.82,0.00027397,2]
[344745860,1733763134559,-531.82,0.00027397,2]
[344745861,1733763134566,-531.82,0.00027397,2]
[344745862,1733763134575,-531.82,0.00027397,2]
[344745863,1733763134585,-531.82,0.00027397,2]
[344745864,1733763134597,-531.82,0.00027397,2]
[344745865,1733763134606,-531.82,0.00027397,2]
[344745866,1733763134615,-531.82,0.00027397,2]
[344745867,1733763134626,-531.82,0.00027397,2]
[344745868,1733763134635,-531.82,0.00027397,2]
[344745869,1733763134643,-531.83368664,0.00027397,2]
[344745870,1733763134653,-2000.0,0.00027397,15]
[344745871,1733763134663,-2000.0,0.00027397,15]
[344745872,1733763134674,-2000.0,0.00027397,15]
[344745873,1733763134683,-2000.0,0.00027397,15]
[344745874,1733763134692,-2000.0,0.00027397,15]
[344745875,1733763134702,-2000.0,0.00027397,15]
[344745876,1733763134713,-2000.0,0.00027397,15]
[344745877,1733763134723,-2000.0,0.00027397,15]
[344745878,1733763134732,-2000.0,0.00027397,15]
[344745879,1733763134741,-2000.0,0.00027397,15]
[344745880,1733763134751,-507.13,0.00027397,120]
[344745881,1733763134760,-507.13,0.00027397,120]
[344745882,1733763134769,-507.13,0.00027397,120]
[344745883,1733763134779,-507.13,0.00027397,120]
[344745884,1733763134788,-507.13,0.00027397,120]
[344745885,1733763134797,-507.13,0.00027397,120]
[344745886,1733763134807,-507.13,0.00027397,120]
[344745887,1733763134816,-507.13,0.00027397,120]
[344745888,1733763134826,-507.13,0.00027397,120]
[344745889,1733763134835,-507.13,0.00027397,120]
[344745890,1733763134845,-507.13,0.00027397,120]
[344745891,1733763134854,-507.13,0.00027397,120]
[344745892,1733763134863,-507.13,0.00027397,120]
[344745893,1733763134871,-507.13,0.00027397,120]
[344745894,1733763134880,-507.13,0.00027397,120]
[344745895,1733763134889,-507.13,0.00027397,120]
[344745896,1733763134898,-507.13,0.00027397,120]
[344745897,1733763134908,-507.13,0.00027397,120]
[344745898,1733763134917,-507.13,0.00027397,120]
[344745899,1733763134926,-507.13,0.00027397,120]
[344745900,1733763134935,-507.13,0.00027397,120]
[344745901,1733763134944,-507.13,0.00027397,120]
[344745902,1733763134953,-507.13,0.00027397,120]
[344745903,1733763134965,-507.19980471,0.00027397,120]
[344745904,1733763134974,-2497.38,0.00027397,2]
[344745905,1733763134984,-2497.38,0.00027397,2]
[344745906,1733763134993,-2497.38,0.00027397,2]
[344745907,1733763135002,-2497.38,0.00027397,2]
[344745908,1733763135011,-2497.38,0.00027397,2]
[344745909,1733763135020,-2497.38,0.00027397,2]
[344745910,1733763135030,-2497.38,0.00027397,2]
[344745911,1733763135038,-2497.38,0.00027397,2]
[344745912,1733763135047,-2497.38,0.00027397,2]
[344745913,1733763135056,-2497.38,0.00027397,2]
[344745914,1733763135065,-2497.38,0.00027397,2]
[344745915,1733763135073,-2497.38,0.00027397,2]
[344745916,1733763135083,-2497.38,0.00027397,2]
[344745917,1733763135092,-2497.38,0.00027397,2]
[344745918,1733763135101,-2497.38,0.00027397,2]
[344745919,1733763135110,-2497.38,0.00027397,2]
[344745920,1733763135119,-2497.38,0.00027397,2]
[344745921,1733763135127,-2497.38,0.00027397,2]
[344745922,1733763135136,-2497.38,0.00027397,2]
[344745923,1733763135145,-2497.38,0.00027397,2]
[344745924,1733763135154,-2497.38,0.00027397,2]
[344745925,1733763135163,-2497.38,0.00027397,2]
[344745926,1733763135173,-2497.38,0.00027397,2]
[344745927,1733763135182,-2497.52069956,0.00027397,2]
[344745928,1733763135191,-515.78,0.00027397,2]
[344745929,1733763135201,-515.78,0.00027397,2]
[344745930,1733763135210,-150.0,0.00027397,2]
[344745931,1733763135222,-515.78,0.00027397,2]
[344745932,1733763135230,-150.0,0.00027397,2]
[344745933,1733763135239,-515.78,0.00027397,2]
[344745934,1733763135248,-150.0,0.00027397,2]
[344745935,1733763135258,-515.78,0.00027397,2]
[344745936,1733763135267,-150.0,0.00027397,2]
[344745937,1733763135276,-515.78,0.00027397,2]
[344745938,1733763135285,-150.0,0.00027397,2]
[344745939,1733763135294,-150.0,0.00027397,2]
[344745940,1733763135303,-515.78,0.00027397,2]
[344745941,1733763135312,-150.0,0.00027397,2]
[344745942,1733763135321,-515.78,0.00027397,2]
[344745943,1733763135330,-150.0,0.00027397,2]
[344745944,1733763135339,-515.78,0.00027397,2]
[344745945,1733763135348,-223.88379675,0.00027397,2]
[344745946,1733763135357,-515.78,0.00027397,2]
[344745947,1733763135366,-515.78,0.00027397,2]
[344745948,1733763135375,-515.78,0.00027397,2]
[344745949,1733763135384,-515.78,0.00027397,2]
[344745950,1733763135393,-515.78,0.00027397,2]
[344745951,1733763135402,-515.78,0.00027397,2]
[344745952,1733763135411,-515.78,0.00027397,2]
[344745953,1733763135420,-515.78,0.00027397,2]
[344745954,1733763135429,-515.78,0.00027397,2]
[344745955,1733763135438,-515.78,0.00027397,2]
[344745956,1733763135446,-515.78,0.00027397,2]
[344745957,1733763135455,-515.78,0.00027397,2]
[344745958,1733763135465,-515.78,0.00027397,2]
[344745959,1733763135474,-515.78,0.00027397,2]
[344745960,1733763135483,-515.99313302,0.00027397,2]
[344745961,1733763135491,-1763.6,0.00027397,2]
[344745962,1733763135499,-1763.6,0.00027397,2]
[344745963,1733763135508,-1763.6,0.00027397,2]
[344745964,1733763135517,-1763.6,0.00027397,2]
[344745965,1733763135526,-1763.6,0.00027397,2]
[344745966,1733763135535,-1763.6,0.00027397,2]
[344745967,1733763135544,-1763.6,0.00027397,2]
[344745968,1733763135553,-1763.6,0.00027397,2]
[344745969,1733763135562,-1763.6,0.00027397,2]
[344745970,1733763135571,-1763.6,0.00027397,2]
[344745971,1733763135580,-1763.6,0.00027397,2]
[344745972,1733763135592,-1763.6,0.00027397,2]
[344745973,1733763135601,-1763.6,0.00027397,2]
[344745974,1733763135610,-1763.6,0.00027397,2]
[344745975,1733763135619,-1763.6,0.00027397,2]
[344745976,1733763135629,-1763.6,0.00027397,2]
[344745977,1733763135638,-1763.6,0.00027397,2]
[344745978,1733763135647,-1763.6,0.00027397,2]
[344745979,1733763135656,-1763.6,0.00027397,2]
[344745980,1733763135666,-1763.6,0.00027397,2]
[344745981,1733763135675,-1763.6,0.00027397,2]
[344745982,1733763135684,-1763.6,0.00027397,2]
[344745983,1733763135693,-1763.6,0.00027397,2]
[344745984,1733763135702,-1763.75,0.00027397,2]
[344745985,1733763135711,-2000.0,0.00027397,30]
[344745986,1733763135723,-2000.0,0.00027397,30]
[344745987,1733763135732,-2000.0,0.00027397,30]
[344745988,1733763135741,-2000.0,0.00027397,30]
[344745989,1733763135750,-2000.0,0.00027397,30]
[344745990,1733763135759,-2000.0,0.00027397,30]
[344745991,1733763135768,-2000.0,0.00027397,30]
[344745992,1733763135777,-2000.0,0.00027397,30]
[344745993,1733763135787,-2000.0,0.00027397,30]
[344745994,1733763135796,-2000.0,0.00027397,30]
[344745995,1733763135805,-2000.0,0.00027397,30]
[344745996,1733763135815,-2000.0,0.00027397,30]
[344745997,1733763135824,-243.36868139,0.00027397,30]
[344745998,1733763135833,-1549.94,0.00027397,2]
[344745999,1733763135842,-1549.94,0.00027397,2]
[344746000,1733763135851,-1549.94,0.00027397,2]
[344746001,1733763135860,-1549.94,0.00027397,2]
[344746002,1733763135869,-1549.94,0.00027397,2]
[344746003,1733763135878,-1549.94,0.00027397,2]
[344746004,1733763135887,-1549.94,0.00027397,2]
[344746005,1733763135895,-1549.94,0.00027397,2]
[344746006,1733763135904,-1549.94,0.00027397,2]
[344746007,1733763135913,-1549.94,0.00027397,2]
[344746008,1733763135922,-1549.94,0.00027397,2]
[344746009,1733763135931,-1549.94,0.00027397,2]
[344746010,1733763135940,-1549.94,0.00027397,2]
[344746011,1733763135949,-1549.94,0.00027397,2]
[344746012,1733763135958,-1549.94,0.00027397,2]
[344746013,1733763135970,-1549.94,0.00027397,2]
[344746014,1733763135979,-1549.94,0.00027397,2]
[344746015,1733763135988,-1549.94,0.00027397,2]
[344746016,1733763135997,-1549.94,0.00027397,2]
[344746017,1733763136006,-1549.94,0.00027397,2]
[344746018,1733763136015,-1549.94,0.00027397,2]
[344746019,1733763136024,-1549.94,0.00027397,2]
[344746020,1733763136033,-1549.94,0.00027397,2]
[344746021,1733763136043,-1550.00161648,0.00027397,2]
[344746022,1733763136052,-1112.11,0.00027397,2]
[344746023,1733763136062,-1112.11,0.00027397,2]
[344746024,1733763136071,-1112.11,0.00027397,2]
[344746025,1733763136080,-1112.11,0.00027397,2]
[344746026,1733763136089,-1112.11,0.00027397,2]
[344746027,1733763136098,-1112.11,0.00027397,2]
[344746028,1733763136108,-1112.11,0.00027397,2]
[344746029,1733763136117,-1112.11,0.00027397,2]
[344746030,1733763136126,-1112.11,0.00027397,2]
[344746031,1733763136135,-1112.11,0.00027397,2]
[344746032,1733763136144,-1112.11,0.00027397,2]
[344746033,1733763136154,-1112.11,0.00027397,2]
[344746034,1733763136163,-1112.11,0.00027397,2]
[344746035,1733763136172,-1112.11,0.00027397,2]
[344746036,1733763136182,-1112.11,0.00027397,2]
[344746037,1733763136191,-1112.11,0.00027397,2]
[344746038,1733763136200,-1112.11,0.00027397,2]
[344746039,1733763136209,-1112.11,0.00027397,2]
[344746040,1733763136222,-1112.11,0.00027397,2]
[344746041,1733763136235,-1112.11,0.00027397,2]
[344746042,1733763136244,-1112.11,0.00027397,2]
[344746043,1733763136254,-1112.11,0.00027397,2]
[344746044,1733763136263,-1112.11,0.00027397,2]
[344746045,1733763136273,-1112.23192871,0.00027397,2]
[344746046,1733763136283,-200.0,0.00027397,60]
[344746047,1733763136293,-204.61326,0.00027397,7]
[344746048,1733763136303,-150.0,0.00027397,2]
[344746049,1733763136312,-151.0,0.00027397,7]
[344746050,1733763136322,-151.0,0.00027397,7]
[344746051,1733763136332,-151.0,0.00027397,7]
[344746052,1733763136341,-151.0,0.00027397,7]
[344746053,1733763136351,-151.0,0.00027397,7]
[344746054,1733763136360,-292.940667,0.00027397,7]
[344746055,1733763136370,-254.22850344,0.00027397,2]
[344746056,1733763136379,-8275.23,0.00027397,15]
[344746057,1733763136388,-57291.76,0.00027397,2]
[344746058,1733763136398,-400.0,0.00027397,10]
[344746059,1733763136406,-400.0,0.00027397,10]
[344746060,1733763136415,-400.0,0.00027397,10]
[344746061,1733763136424,-400.0,0.00027397,10]
[344746062,1733763136433,-400.0,0.00027397,10]
[344746063,1733763136443,-400.0,0.00027397,10]
[344746064,1733763136453,-400.0,0.00027397,10]
[344746065,1733763136462,-400.0,0.00027397,10]
[344746066,1733763136474,-400.0,0.00027397,10]
[344746067,1733763136484,-400.0,0.00027397,10]
[344746068,1733763136494,-400.0,0.00027397,10]
[344746069,1733763136504,-400.0,0.00027397,10]
[344746070,1733763136514,-400.0,0.00027397,10]
[344746071,1733763136524,-400.0,0.00027397,10]
[344746072,1733763136534,-400.0,0.00027397,10]
[344746073,1733763136543,-400.0,0.00027397,10]
[344746074,1733763136553,-400.0,0.00027397,10]
[344746075,1733763136563,-500.45252162,0.00027397,10]
[344746076,1733763136572,-400.0,0.00027397,10]
[344746077,1733763136583,-13816.0,0.000274,14]
[344746078,1733763136596,-200.0,0.000274,2]
[344746079,1733763136606,-150.0,0.00027409,2]
[344746080,1733763136615,-3801.27,0.00027415,15]
[344746081,1733763136625,-3801.27,0.00027415,15]
[344746082,1733763136635,-170.34598617,0.0002742,7]
[344746083,1733763136644,-236.39968009,0.0002742,7]
[344746084,1733763136653,-150.0,0.00027432,120]
[344746085,1733763136664,-150.0,0.0002744,2]
[344746086,1733763136673,-170.34598617,0.00027449,7]
[344746087,1733763136683,-236.39968009,0.00027449,7]
[344746088,1733763136693,-150.0,0.00027449,7]
[344746089,1733763136703,-150.0,0.00027455,2]
[344746090,1733763136713,-150.0,0.00027469,7]
[344746091,1733763136727,-150.0,0.0002747,2]
[344746092,1733763136735,-1001.78,0.00027475,2]
[344746093,1733763136745,-170.34598617,0.00027478,7]
[344746094,1733763136755,-236.39968009,0.00027478,7]
[344746095,1733763136765,-150.0,0.00027481,7]
[344746096,1733763136775,-1500.0,0.00027484,2]
[344746097,1733763136785,-1500.0,0.00027489,2]
[344746098,1733763136794,-150.0,0.00027493,2]
[344746099,1733763136803,-191.84815834,0.000275,2]
[344746100,1733763136811,-13456.74045409,0.000275,2]
[344746101,1733763136820,-7416.0,0.000275,20]
[344746102,1733763136830,-3727.76,0.000275,31]
[344746103,1733763136840,-3727.76,0.000275,31]
[344746104,1733763136849,-3727.76,0.000275,31]
[344746105,1733763136858,-3727.76,0.000275,31]
[344746106,1733763136867,-3727.76,0.000275,31]
[344746107,1733763136878,-3727.76,0.000275,31]
[344746108,1733763136888,-3727.76,0.000275,31]
[344746109,1733763136897,-3727.76,0.000275,31]
[344746110,1733763136906,-3727.76,0.000275,31]
[344746111,1733763136914,-3727.76,0.000275,31]
[344746112,1733763136924,-3727.76,0.000275,31]
[344746113,1733763136933,-3727.76,0.000275,31]
[344746114,1733763136943,-3727.76,0.000275,31]
[344746115,1733763136953,-3727.76,0.000275,31]
[344746116,1733763136963,-3727.76,0.000275,31]
[344746117,1733763136979,-3727.76,0.000275,31]
[344746118,1733763136988,-3000.0,0.000275,2]
[344746119,1733763136999,-150.0,0.00027502,7]
[344746120,1733763137008,-150.0,0.00027504,2]
[344746121,1733763137019,-170.34598617,0.00027507,7]
[344746122,1733763137028,-236.39968009,0.00027507,7]
[344746123,1733763137038,-200.0,0.00027524,120]
[344746124,1733763137048,-150.0,0.00027525,2]
[344746125,1733763137058,-170.34598617,0.00027536,7]
[344746126,1733763137068,-236.39968009,0.00027536,7]
[344746127,1733763137077,-150.0,0.00027537,2]
[344746128,1733763137086,-1500.0,0.00027538,2]
[344746129,1733763137096,-1031.657,0.00027549,2]
[344746130,1733763137105,-630.0,0.00027549,2]
[344746131,1733763137115,-402.369,0.00027549,2]
[344746132,1733763137124,-150.0,0.00027549,2]
[344746133,1733763137134,-322.19,0.00027549,2]
[344746134,1733763137143,-150.0,0.00027556,7]
[344746135,1733763137153,-170.34598617,0.00027565,7]
[344746136,1733763137163,-236.39968009,0.00027565,7]
[344746137,1733763137172,-152.0,0.0002757,16]
[344746138,1733763137182,-150.0,0.00027577,7]
[344746139,1733763137192,-150.0,0.00027581,2]
[344746140,1733763137202,-150.0,0.00027589,2]
[344746141,1733763137212,-170.34598617,0.00027594,7]
[344746142,1733763137225,-236.39968009,0.00027594,7]
[344746143,1733763137235,-150.0,0.00027597,2]
[344746144,1733763137245,-21920.0,0.000276,10]
[344746145,1733763137255,-1500.0,0.000276,2]
[344746146,1733763137265,-1500.0,0.00027606,2]
[344746147,1733763137275,-150.0,0.00027609,7]
[344746148,1733763137284,-150.0,0.00027612,2]
[344746149,1733763137292,-150.0,0.00027619,2]
[344746150,1733763137302,-150.0,0.00027621,2]
[344746151,1733763137312,-170.34598617,0.00027623,7]
[344746152,1733763137322,-236.39968009,0.00027623,7]
[344746153,1733763137332,-150.0,0.00027624,2]
[344746154,1733763137343,-150.0,0.00027629,2]
[344746155,1733763137352,-2000.0,0.0002763,7]
[344746156,1733763137362,-5300.0,0.0002763,7]
[344746157,1733763137372,-500.0,0.0002763,7]
[344746158,1733763137382,-150.0,0.0002763,2]
[344746159,1733763137392,-1500.0,0.00027631,2]
[344746160,1733763137402,-150.0,0.00027635,2]
[344746161,1733763137411,-150.0,0.00027635,2]
[344746162,1733763137420,-150.0,0.0002764,120]
[344746163,1733763137431,-150.0,0.00027649,7]
[344746164,1733763137440,-150.0,0.00027649,7]
[344746165,1733763137450,-170.34598617,0.00027652,7]
[344746166,1733763137461,-236.39968009,0.00027652,7]
[344746167,1733763137475,-38789.34039975,0.00027658,7]
[344746168,1733763139017,-500.0,0.00012876,2]
[344746169,1733763139027,-95.48660208,0.00027658,7]
[344746170,1733763139038,-150.0,0.00027661,2]
[344746171,1733763139048,-150.0,0.00027662,7]
[344746172,1733763139062,-150.0,0.00027669,2]
[344746173,1733763139071,-150.0,0.00027673,7]
[344746174,1733763139080,-1382.35339832,0.00027678,2]
[344746175,1733763139107,-808.06,0.00012876,2]
[344746176,1733763139117,-1884.58,0.00012876,2]
[344746177,1733763139129,-117.64660168,0.00027678,2]
[344746178,1733763139139,-170.34598617,0.00027681,7]
[344746179,1733763139149,-236.39968009,0.00027681,7]
[344746180,1733763139158,-3801.27,0.00027688,15]
[344746181,1733763139168,-3801.27,0.00027688,15]
[344746182,1733763139179,-801.77657224,0.000277,7]
[344746183,1733763139190,-15433.55074928,0.000277,7]
[344746184,1733763139200,-150.0,0.00027707,2]
[344746185,1733763139210,-1500.0,0.0002771,2]
[344746186,1733763139222,-170.34598617,0.0002771,7]
[344746187,1733763139232,-236.39968009,0.0002771,7]
[344746188,1733763139242,-150.0,0.00027711,120]
[344746189,1733763139253,-150.0,0.00027713,2]
[344746190,1733763139263,-150.0,0.00027715,7]
[344746191,1733763139274,-150.0,0.0002772,120]
[344746192,1733763139284,-2110.0,0.00027726,2]
[344746193,1733763139294,-150.0,0.00027733,2]
[344746194,1733763139304,-150.0,0.00027733,2]
[344746195,1733763139314,-150.0,0.00027734,2]
[344746196,1733763139324,-170.34598617,0.00027739,7]
[344746197,1733763139334,-236.39968009,0.00027739,7]
[344746198,1733763139345,-150.0,0.00027746,2]
[344746199,1733763139354,-150.0,0.00027749,2]
[344746200,1733763139365,-150.0,0.00027753,2]
[344746201,1733763139375,-150.0,0.00027764,2]
[344746202,1733763139386,-170.34598617,0.00027768,7]
[344746203,1733763139396,-236.39968009,0.00027768,7]
[344746204,1733763139407,-150.0,0.00027768,7]
[344746205,1733763139416,-150.0,0.00027768,7]
[344746206,1733763139426,-150.0,0.00027776,2]
[344746207,1733763139436,-1500.0,0.00027783,2]
[344746208,1733763139447,-150.0,0.00027789,2]
[344746209,1733763139457,-150.0,0.00027794,2]
[344746210,1733763139467,-150.0,0.00027797,2]
[344746211,1733763139478,-170.34598617,0.00027797,7]
[344746212,1733763139488,-236.39968009,0.00027797,7]
[344746213,1733763139499,-500.0,0.000278,2]
[344746214,1733763139508,-500.0,0.000278,2]
[344746215,1733763139518,-173.04624442,0.000278,2]
[344746216,1733763139528,-947.0,0.000278,16]
[344746217,1733763139538,-150.0,0.00027803,2]
[344746218,1733763139548,-150.0,0.00027807,2]
[344746219,1733763139558,-100000.0,0.0002781,7]
[344746220,1733763139569,-22900.26,0.0002781,7]